bitfinex/quotes_SOLUSD_20240917
["timestamp","ask_amount","ask_price","bid_price","bid_amount"]
[1726592081284,0.2617637,132.75,132.74,22.81131417]
[1726592082196,0.2617637,132.75,132.74,42.81131417]
[1726592082586,0.2617637,132.75,132.74,27.5335]
[1726592082902,0.2617637,132.75,132.74,42.81131417]
[1726592083876,0.2617637,132.75,132.74,27.5335]
[1726592084076,0.2617637,132.75,132.74,7.5335]
[1726592084272,0.2617637,132.75,132.74,42.81131417]
[1726592087100,0.2617637,132.75,132.74,27.5335]
[1726592087298,0.2617637,132.75,132.74,7.5335]
[1726592090494,0.2617637,132.75,132.69,15.27781417]
[1726592090697,0.2617637,132.75,132.74,7.5335]
[1726592101916,0.5127437,132.75,132.73,7.5339]
[1726592102098,0.5127437,132.75,132.66,7.86168035]
[1726592102099,0.25098,132.74,132.66,7.86168035]
[1726592102300,0.25098,132.74,132.67,15.27781417]
[1726592102511,0.25098,132.74,132.73,7.534]
[1726592103694,0.2617637,132.75,132.74,7.5335]
[1726592109903,0.2617637,132.75,132.74,22.81131417]
[1726592110604,6.37e-05,132.75,132.74,65.41201417]
[1726592110809,6.37e-05,132.75,132.74,65.53750417]
[1726592111722,6.37e-05,132.75,132.74,65.41201417]
[1726592112402,6.37e-05,132.75,132.74,50.1342]
[1726592114917,6.37e-05,132.75,132.74,65.66299417]
[1726592115532,0.2617012,132.79,132.78,7.5312]
[1726592115704,0.2617012,132.79,132.78,22.80901417]
[1726592115898,0.2617012,132.79,132.78,7.5312]
[1726592119639,0.3871912,132.79,132.78,7.5312]
[1726592119805,25.83062001,132.79,132.78,7.5312]
[1726592120206,24.1640752,132.79,132.78,7.5312]
[1726592120635,0.3871912,132.79,132.77,7.5317]
[1726592121124,0.3871912,132.79,132.71,16.4814]
[1726592121125,23.902374,132.79,132.78,7.5312]
[1726592121334,24.0883339,132.79,132.78,7.5312]
[1726592125246,0.1859599,132.79,132.78,7.5312]
[1726592129235,0.12549,132.78,132.76,7.5322]
[1726592129437,0.12549,132.78,132.72,16.1964]
[1726592129438,0.25098,132.78,132.75,7.5328]
[1726592129735,9.44872481,132.78,132.74,7.5333]
[1726592129937,1.91752481,132.78,132.74,7.5333]
[1726592130633,9.44882481,132.78,132.74,7.5334]
[1726592131013,0.25098,132.78,132.75,7.5329]
[1726592131210,0.25098,132.78,132.76,7.5321]
[1726592133537,1.91752481,132.78,132.76,7.5321]
[1726592134449,0.25098,132.78,132.75,7.5326]
[1726592134629,0.25098,132.76,132.68,7.86646794]
[1726592134843,0.25098,132.73,132.7,7.5354]
[1726592135022,1.91752481,132.73,132.7,7.5354]
[1726592135437,0.25098,132.73,132.71,7.5351]
[1726592135639,24.027864,132.74,132.71,7.5351]
[1726592135847,24.027864,132.74,132.72,7.5342]
[1726592136231,0.25098,132.75,132.72,7.5342]
[1726592136638,24.027864,132.75,132.72,7.5342]
[1726592137033,24.027864,132.76,132.73,7.5339]
[1726592137238,24.027864,132.76,132.74,7.5333]
[1726592137457,0.12549,132.76,132.74,7.5333]
[1726592137755,0.1859599,132.77,132.76,7.5323]
[1726592138142,0.1859599,132.77,132.75,7.5327]
[1726592139042,0.4369399,132.77,132.76,7.5323]
[1726592139239,0.3114499,132.77,132.76,7.5323]
[1726592139546,0.1859599,132.77,132.76,7.5323]
[1726592142441,0.1859599,132.77,132.76,51.38421487]
[1726592142746,5.99e-05,132.77,132.76,51.38421487]
[1726592143147,5.99e-05,132.77,132.76,27.5323]
[1726592144564,5.99e-05,132.77,132.76,7.5323]
[1726592153372,5.99e-05,132.77,132.76,52.17283144]
[1726592154486,5.99e-05,132.77,132.76,27.5323]
[1726592157960,5.99e-05,132.77,132.76,7.5323]
[1726592159499,5.99e-05,132.77,132.75,7.5328]
[1726592159795,5.99e-05,132.77,132.68,7.86581862]
[1726592159796,0.12549,132.76,132.68,7.86581862]
[1726592159965,0.12549,132.76,132.75,7.5329]
[1726592160167,0.1255499,132.77,132.76,7.5323]
[1726592161172,5.99e-05,132.77,132.76,7.5323]
[1726592162073,30.0000599,132.77,132.76,7.5323]
[1726592163092,5.99e-05,132.77,132.76,27.5323]
[1726592168168,0.5058353,132.81,132.76,27.5323]
[1726592168169,0.5058353,132.81,132.8,7.5301]
[1726592170995,0.12549,132.8,132.77,7.5313]
[1726592171197,25.69440881,132.8,132.78,7.5307]
[1726592171508,54.027864,132.8,132.78,7.5307]
[1726592173307,54.027864,132.8,132.79,7.5306]
[1726592177605,54.027864,132.8,132.78,7.5311]
[1726592177780,1.91752481,132.79,132.78,7.5311]
[1726592177978,31.91752481,132.79,132.77,7.5316]
[1726592178293,0.25098,132.78,132.76,7.5322]
[1726592178612,0.25098,132.77,132.74,7.5334]
[1726592178911,24.027864,132.76,132.74,7.5334]
[1726592179511,24.027864,132.76,132.69,22.7674]
[1726592179512,24.027864,132.76,132.73,7.5339]
[1726592179709,24.027864,132.76,132.74,7.5334]
[1726592179880,24.027864,132.76,132.75,7.5329]
[1726592180082,30.0,132.76,132.75,7.5329]
[1726592182486,14.2385353,132.81,132.79,7.5305]
[1726592182810,30.0,132.8,132.79,7.5305]
[1726592183101,30.0,132.8,132.74,6.5697]
[1726592183102,14.2385353,132.81,132.8,7.5301]
[1726592183305,0.5058353,132.81,132.8,7.5301]
[1726592183604,0.5058353,132.81,132.79,7.5305]
[1726592184209,0.12549,132.8,132.79,7.5305]
[1726592184799,0.5058353,132.81,132.8,7.5301]
[1726592186814,0.5058353,132.81,132.8,27.5301]
[1726592186988,0.5058353,132.81,132.8,7.5301]
[1726592188693,0.5058353,132.81,132.8,27.5301]
[1726592189884,0.5058353,132.81,132.8,28.88123381]
[1726592190290,0.2577269,132.85,132.81,20.0]
[1726592190586,0.2577269,132.85,132.83,20.0]
[1726592190789,0.2577269,132.85,132.83,36.3421]
[1726592191611,0.2577269,132.85,132.84,26.6209]
[1726592193834,0.2577269,132.85,132.83,16.3421]
[1726592196221,0.2635622,132.89,132.83,16.3421]
[1726592196913,24.027864,132.88,132.83,16.3421]
[1726592197126,1.66654481,132.87,132.81,6.1702]
[1726592197341,23.902374,132.86,132.81,6.1702]
[1726592197626,23.902374,132.86,132.8,16.5276]
[1726592197934,1.66654481,132.85,132.8,16.5276]
[1726592198926,0.12549,132.84,132.8,16.5276]
[1726592199646,0.25098,132.85,132.8,16.5276]
[1726592199840,1.91752481,132.85,132.8,16.5276]
[1726592200043,0.25098,132.85,132.8,16.5276]
[1726592201144,23.776884,132.84,132.78,6.4854]
[1726592201528,0.25098,132.85,132.78,6.4854]
[1726592202038,0.12549,132.85,132.79,20.0]
[1726592202240,23.776884,132.86,132.79,20.0]
[1726592202773,24.027864,132.87,132.79,20.0]
[1726592202925,33.22050881,132.87,132.79,20.0]
[1726592205850,7.527,132.86,132.79,20.0]
[1726592206141,24.027864,132.85,132.78,6.4854]
[1726592206545,0.12549,132.85,132.79,20.12549]
[1726592206748,0.2635622,132.89,132.8,15.4488]
[1726592206925,0.2635622,132.89,132.81,20.0]
[1726592207422,0.2635622,132.89,132.82,6.2049]
[1726592207923,0.2635622,132.89,132.83,0.38073508]
[1726592208136,0.12549,132.88,132.83,0.38073508]
[1726592208347,0.2635622,132.89,132.83,0.38073508]
[1726592208725,0.2635622,132.89,132.82,30.02946702]
[1726592210136,0.2635622,132.89,132.85,15.4517]
[1726592220448,0.2635622,132.89,132.86,6.4991]
[1726592223666,0.2635622,132.89,132.85,15.4517]
[1726592223847,0.25098,132.88,132.82,6.4991]
[1726592224164,0.2635622,132.89,132.82,6.4991]
[1726592224353,0.2635622,132.89,132.83,23.82456702]
[1726592226544,0.2635622,132.89,132.85,23.82456702]
[1726592226759,0.2635622,132.89,132.83,23.82456702]
[1726592228865,0.2635622,132.89,132.82,6.4991]
[1726592228866,0.2635622,132.89,132.85,23.82456702]
[1726592229056,0.2635622,132.89,132.87,30.35716702]
[1726592229364,0.2635622,132.89,132.88,1.50403529]
[1726592229561,0.2635622,132.89,132.88,20.0]
[1726592229740,0.2635622,132.89,132.88,21.50450775]
[1726592230239,0.2635622,132.89,132.88,20.0]
[1726592242543,0.2577269,132.93,132.88,20.69953553]
[1726592242751,0.2577269,132.93,132.9,23.82456702]
[1726592243050,0.2577269,132.93,132.91,0.69937763]
[1726592243451,0.2577269,132.93,132.9,23.82456702]
[1726592244066,0.2577269,132.93,132.91,0.69900928]
[1726592244976,0.2577269,132.93,132.88,43.82456702]
[1726592246577,0.2577269,132.93,132.92,23.82456702]
[1726592246772,0.2577269,132.93,132.92,51.48564014]
[1726592248866,0.2577269,132.93,132.92,49.98336702]
[1726592249353,0.2577269,132.93,132.91,20.0]
[1726592252360,0.2577269,132.93,132.88,30.07386702]
[1726592252560,0.2577269,132.93,132.89,20.0]
[1726592253369,0.2577269,132.93,132.84,13.9645301]
[1726592253370,0.25098,132.92,132.84,13.9645301]
[1726592253671,13.98368,132.92,132.84,13.9645301]
[1726592254281,13.98368,132.92,132.86,23.82456702]
[1726592254486,13.98368,132.92,132.84,13.9645301]
[1726592254981,1.66654481,132.91,132.85,20.0]
[1726592257378,15.65022481,132.92,132.85,20.0]
[1726592258064,13.98368,132.92,132.85,20.0]
[1726592258264,13.98368,132.92,132.85,43.82456702]
[1726592258888,0.2577269,132.93,132.87,23.82456702]
[1726592259060,0.2577269,132.93,132.89,23.82456702]
[1726592259894,0.2577269,132.93,132.9,20.0]
[1726592260773,0.2577269,132.93,132.86,20.0]
[1726592261483,0.25098,132.92,132.86,20.0]
[1726592261683,1.91752481,132.92,132.85,16.0462]
[1726592261979,1.91752481,132.92,132.84,6.1083]
[1726592262570,0.25098,132.92,132.84,6.1083]
[1726592262962,0.25098,132.92,132.85,23.82456702]
[1726592264687,1.91752481,132.92,132.84,6.1083]
[1726592264869,1.91752481,132.92,132.85,20.0]
[1726592265083,0.25098,132.92,132.85,20.0]
[1726592265388,0.2577269,132.93,132.85,20.0]
[1726592265389,0.2577269,132.93,132.85,43.82456702]
[1726592265885,0.2577269,132.93,132.88,20.0]
[1726592266382,0.2577269,132.93,132.86,20.0]
[1726592268693,1.92427171,132.93,132.86,20.0]
[1726592268867,0.2577269,132.93,132.86,20.0]
[1726592271791,0.2577269,132.93,132.85,20.0]
[1726592271792,0.25098,132.92,132.85,20.0]
[1726592272085,1.91752481,132.92,132.85,20.0]
[1726592272467,0.12549,132.9,132.84,20.0]
[1726592272667,1.79203481,132.9,132.84,20.0]
[1726592275686,0.12549,132.9,132.84,20.0]
[1726592275872,1.79203481,132.9,132.84,20.0]
[1726592277490,0.12549,132.9,132.84,20.0]
[1726592280901,13.7327,132.91,132.85,23.82456702]
[1726592281693,13.7327,132.91,132.83,43.82456702]
[1726592282593,1.66654481,132.9,132.83,43.82456702]
[1726592283191,1.79203481,132.89,132.83,20.0]
[1726592284297,1.79203481,132.88,132.82,7.8606776]
[1726592284503,0.12549,132.87,132.82,7.8606776]
[1726592285096,1.66654481,132.86,132.79,0.2577269]
[1726592285397,0.12549,132.87,132.79,0.2577269]
[1726592285398,1.66654481,132.85,132.79,0.2577269]
[1726592285586,0.12549,132.86,132.79,0.2577269]
[1726592285779,0.12549,132.84,132.79,0.2577269]
[1726592285975,0.12549,132.83,132.79,0.2577269]
[1726592292416,8.11017908,132.88,132.79,0.2577269]
[1726592294023,0.12549,132.86,132.79,0.2577269]
[1726592294313,0.25098,132.86,132.79,0.2577269]
[1726592295713,1.66654481,132.85,132.79,0.2577269]
[1726592296102,0.12549,132.84,132.79,0.2577269]
[1726592296697,1.79203481,132.84,132.79,0.2577269]
[1726592296892,0.12549,132.85,132.79,0.2577269]
[1726592299523,0.12549,132.84,132.79,0.2577269]
[1726592300207,0.12549,132.83,132.79,0.2577269]
[1726592300406,0.12549,132.82,132.79,0.2577269]
[1726592309428,7.86026465,132.86,132.79,0.2577269]
[1726592309632,7.5271,132.86,132.79,0.2577269]
[1726592309818,1.66654481,132.85,132.79,0.2577269]
[1726592310123,9.19394481,132.85,132.79,0.2577269]
[1726592310532,7.5274,132.85,132.79,0.2577269]
[1726592310722,1.79203481,132.84,132.79,0.2577269]
[1726592311026,0.12549,132.83,132.79,0.2577269]
[1726592311209,0.12549,132.81,132.79,0.2577269]
[1726592314232,0.25098,132.81,132.79,0.2577269]
[1726592314630,0.12549,132.81,132.79,0.2577269]
[1726592316936,0.25098,132.8,132.79,0.2577269]
[1726592317742,7.78108,132.8,132.79,0.2577269]
[1726592318125,0.25098,132.8,132.79,0.2577269]
[1726592318513,1.91752481,132.8,132.79,0.2577269]
[1726592318718,0.25098,132.83,132.79,0.2577269]
[1726592320513,0.12549,132.81,132.79,0.2577269]
[1726592321046,0.25098,132.83,132.79,0.2577269]
[1726592322248,0.25098,132.84,132.79,0.2577269]
[1726592323946,7.77878,132.84,132.79,0.2577269]
[1726592324151,7.5287,132.83,132.79,0.2577269]
[1726592324446,0.25098,132.82,132.79,0.2577269]
[1726592325043,1.91752481,132.82,132.79,0.2577269]
[1726592325236,7.5296,132.81,132.79,0.2577269]
[1726592325430,1.91752481,132.8,132.79,0.2577269]
[1726592326345,9.44762481,132.8,132.79,0.2577269]
[1726592326531,7.78108,132.8,132.79,0.2577269]
[1726592326731,0.25098,132.8,132.79,0.2577269]
[1726592327630,15.39391188,132.84,132.79,0.2577269]
[1726592327830,7.528,132.84,132.79,0.2577269]
[1726592328131,9.19504481,132.83,132.79,0.2577269]
[1726592328330,7.5279,132.84,132.79,0.2577269]
[1726592328960,0.25098,132.83,132.79,0.2577269]
[1726592329447,1.91752481,132.83,132.79,0.2577269]
[1726592329652,9.44602481,132.83,132.79,0.2577269]
[1726592331444,1.91752481,132.83,132.79,0.2577269]
[1726592332131,9.44592481,132.83,132.79,0.2577269]
[1726592333033,1.91752481,132.83,132.79,0.2577269]
[1726592333232,7.78108,132.8,132.79,0.2577269]
[1726592338528,7.78108,132.8,132.79,1e-08]
[1726592338727,7.78108,132.8,132.75,0.2577269]
[1726592338728,0.25098,132.76,132.75,0.2577269]
[1726592338958,1.91752481,132.76,132.75,0.2577269]
[1726592339649,1.91752481,132.76,132.75,7.7906269]
[1726592339824,0.12549,132.76,132.75,7.7906269]
[1726592340028,7.5299,132.81,132.75,0.2577269]
[1726592340228,7.5302,132.8,132.75,0.2577269]
[1726592340646,1.66654481,132.79,132.75,0.2577269]
[1726592340839,1.66654481,132.79,132.77,7.5316]
[1726592341641,0.25098,132.78,132.75,0.2577269]
[1726592341953,1.91752481,132.78,132.75,7.7906269]
[1726592342368,9.44872481,132.78,132.75,0.2577269]
[1726592342744,1.91752481,132.78,132.75,7.7906269]
[1726592342958,0.25098,132.78,132.75,7.7906269]
[1726592344049,7.5297,132.81,132.75,0.2577269]
[1726592344456,7.5297,132.81,132.77,7.5317]
[1726592345163,9.19624481,132.81,132.77,7.5317]
[1726592345571,0.12549,132.8,132.77,7.5317]
[1726592346158,0.25098,132.8,132.78,7.5311]
[1726592346475,0.25098,132.8,132.75,0.2577269]
[1726592346476,7.5301,132.8,132.75,0.2577269]
[1726592346774,7.5296,132.81,132.77,7.5313]
[1726592347150,7.5296,132.81,132.77,7.5314]
[1726592347367,7.5291,132.82,132.78,7.531]
[1726592347891,0.25098,132.81,132.75,0.2577269]
[1726592348083,0.25098,132.82,132.75,0.2577269]
[1726592349550,7.77998,132.82,132.75,0.2577269]
[1726592350466,7.78118,132.8,132.75,0.2577269]
[1726592350772,0.25098,132.78,132.75,0.2577269]
[1726592351857,7.78218,132.78,132.75,0.2577269]
[1726592352060,1.66654481,132.77,132.75,0.2577269]
[1726592352268,1.91752481,132.76,132.75,0.2577269]
[1726592352466,0.25098,132.76,132.75,0.2577269]
[1726592352668,0.25098,132.79,132.76,7.532]
[1726592352903,1.91752481,132.79,132.76,7.532]
[1726592353379,9.44832481,132.79,132.75,7.7904269]
[1726592357083,0.25098,132.77,132.75,0.2577269]
[1726592357272,1.91752481,132.77,132.75,0.2577269]
[1726592358179,9.44942481,132.77,132.75,0.2577269]
[1726592358781,7.78328,132.76,132.75,0.2577269]
[1726592359079,7.78328,132.76,132.71,22.5836269]
[1726592359080,0.25098,132.72,132.71,0.2577269]
[1726592359392,7.78558,132.72,132.71,0.2577269]
[1726592359675,0.25098,132.72,132.71,0.2577269]
[1726592360084,7.78558,132.72,132.71,0.2577269]
[1726592361067,0.25098,132.72,132.71,0.2577269]
[1726592361481,1.91752481,132.72,132.71,0.2577269]
[1726592362675,9.45212481,132.72,132.71,0.2577269]
[1726592363764,9.45212481,132.72,132.69,0.2481084]
[1726592363765,7.78668,132.7,132.69,0.2481084]
[1726592363966,7.78668,132.7,132.67,0.2577269]
[1726592363967,7.66239,132.68,132.67,1e-08]
[1726592364294,0.12549,132.65,132.63,0.2577269]
[1726592364473,0.12549,132.65,132.63,7.7974269]
[1726592365004,23.902374,132.66,132.63,0.2577269]
[1726592365189,23.902374,132.66,132.63,7.7973269]
[1726592365489,33.10711881,132.66,132.63,0.2577269]
[1726592366279,0.12549,132.65,132.63,0.2577269]
[1726592366582,33.10711881,132.66,132.63,0.2577269]
[1726592366583,25.69440881,132.64,132.63,0.2577269]
[1726592366980,33.23360881,132.64,132.63,0.2577269]
[1726592367576,48.58482591,132.64,132.63,0.2577269]
[1726592367768,46.9182811,132.64,132.63,0.2577269]
[1726592367969,0.25098,132.63,132.61,0.2481084]
[1726592368274,7.79238,132.6,132.59,0.2577269]
[1726592368476,7.79238,132.6,132.56,0.2577269]
[1726592368477,7.79308,132.59,132.56,0.2577269]
[1726592368674,0.25098,132.57,132.56,0.2577269]
[1726592368875,1.91752481,132.57,132.56,7.8014269]
[1726592369083,1.91752481,132.57,132.56,0.2577269]
[1726592369756,0.25098,132.57,132.56,0.2577269]
[1726592370083,0.25098,132.57,132.56,7.8014269]
[1726592370084,1.91752481,132.57,132.56,7.8014269]
[1726592370280,0.25098,132.57,132.56,7.8014269]
[1726592370579,0.25098,132.57,132.56,7.5437]
[1726592370768,1.91752481,132.57,132.56,7.5437]
[1726592371680,14.83349854,132.6,132.59,7.542]
[1726592371898,44.83349854,132.6,132.59,7.542]
[1726592372100,7.5385,132.66,132.58,6.0855]
[1726592372306,7.86472782,132.66,132.58,6.0855]
[1726592372584,15.40292782,132.66,132.62,7.5398]
[1726592372785,7.86472782,132.66,132.58,6.0855]
[1726592372963,15.40282782,132.66,132.62,7.5402]
[1726592373377,7.86472782,132.66,132.62,7.5402]
[1726592373586,15.40282782,132.66,132.61,7.5407]
[1726592373784,1.66654481,132.65,132.58,6.0855]
[1726592373959,1.66654481,132.64,132.54,6.0303]
[1726592374160,7.5416,132.6,132.54,6.0303]
[1726592374385,1.66654481,132.59,132.54,6.0303]
[1726592374773,0.25098,132.58,132.56,7.5433]
[1726592375089,0.25098,132.57,132.56,7.5433]
[1726592375898,13.56119591,132.6,132.54,6.0303]
[1726592376072,13.56119591,132.6,132.57,7.543]
[1726592376073,1.91752481,132.59,132.57,7.543]
[1726592377102,1.91752481,132.59,132.56,7.5437]
[1726592377401,1.91752481,132.59,132.57,7.543]
[1726592377774,1.91752481,132.59,132.55,7.5438]
[1726592378094,14.64472927,132.59,132.56,7.5437]
[1726592378460,14.64472927,132.59,132.55,7.5441]
[1726592379279,14.64472927,132.59,132.54,6.0303]
[1726592379480,12.97818446,132.59,132.54,6.0303]
[1726592379681,1.66654481,132.58,132.54,6.0303]
[1726592379886,1.66654481,132.57,132.56,7.5437]
[1726592380090,1.91752481,132.57,132.56,7.5437]
[1726592380294,0.25098,132.57,132.56,7.5437]
[1726592380505,12.72720446,132.59,132.58,7.5426]
[1726592382190,12.97818446,132.59,132.58,7.5426]
[1726592383376,12.72720446,132.59,132.58,7.5426]
[1726592384996,7.78958,132.65,132.61,7.5405]
[1726592385396,0.25098,132.63,132.61,7.5405]
[1726592385694,0.25098,132.62,132.61,7.5405]
[1726592386199,0.25098,132.61,132.6,7.5412]
[1726592388097,0.25098,132.61,132.54,29.8952365]
[1726592388098,0.25098,132.61,132.59,7.5418]
[1726592388299,0.25098,132.62,132.58,7.5424]
[1726592388511,7.79158,132.62,132.58,7.5424]
[1726592388697,0.25098,132.6,132.58,7.5424]
[1726592388890,1.91752481,132.6,132.58,7.5424]
[1726592389402,1.91752481,132.6,132.58,7.5425]
[1726592389777,0.25098,132.6,132.59,7.542]
[1726592389980,1.91752481,132.6,132.59,7.542]
[1726592390207,0.25098,132.6,132.59,7.542]
[1726592390803,14.39632589,132.62,132.61,7.5409]
[1726592390984,14.39632589,132.62,132.54,29.8952365]
[1726592391185,1.66654481,132.61,132.54,29.8952365]
[1726592392401,1.91752481,132.61,132.6,7.5412]
[1726592393696,1.91752481,132.61,132.54,6.0303]
[1726592395407,1.91752481,132.61,132.6,7.5414]
[1726592396207,0.25098,132.61,132.6,7.5414]
[1726592396407,0.12549,132.61,132.6,7.5414]
[1726592396611,12.72978108,132.62,132.61,7.5409]
[1726592396903,12.98076108,132.62,132.61,7.5409]
[1726592397590,12.98076108,132.62,132.6,7.5412]
[1726592398198,1.79203481,132.61,132.6,7.5412]
[1726592398385,1.91752481,132.61,132.6,7.5412]
[1726592399405,0.25098,132.61,132.6,7.5412]
[1726592399608,12.72978108,132.62,132.61,7.5409]
[1726592403006,20.67568256,132.69,132.68,7.5369]
[1726592403191,42.80524199,132.69,132.68,7.5369]
[1726592404101,0.0800456,132.7,132.68,7.5369]
[1726592404304,0.0800456,132.7,132.69,23.0642]
[1726592404512,0.0800456,132.7,132.69,52.9394365]
[1726592405082,13.20414346,132.76,132.75,7.5329]
[1726592405632,0.4069132,132.76,132.75,7.5329]
[1726592406692,0.4069132,132.76,132.75,23.7834]
[1726592407882,0.4069132,132.76,132.69,29.8752365]
[1726592407883,0.4069132,132.76,132.74,7.5334]
[1726592408514,0.4069132,132.76,132.75,7.5329]
[1726592409019,0.4069132,132.76,132.74,7.5335]
[1726592409516,0.4069132,132.76,132.75,7.5329]
[1726592410014,0.4069132,132.76,132.72,23.7847]
[1726592410216,2.07345801,132.76,132.72,23.7847]
[1726592410409,0.12549,132.75,132.72,16.2505]
[1726592411002,7.65849,132.75,132.7,7.5356]
[1726592411313,0.25098,132.73,132.7,7.5356]
[1726592411609,23.776884,132.72,132.68,23.5677]
[1726592411925,23.776884,132.72,132.66,6.5318]
[1726592411926,23.776884,132.7,132.66,6.5318]
[1726592412093,23.776884,132.7,132.65,15.4202]
[1726592412094,24.027864,132.68,132.65,22.9586]
[1726592412404,24.027864,132.68,132.63,6.5318]
[1726592412718,24.027864,132.68,132.66,7.5379]
[1726592412945,23.776884,132.69,132.66,7.5379]
[1726592413125,24.027864,132.7,132.67,7.5372]
[1726592413294,0.12549,132.7,132.63,30.3967365]
[1726592413634,0.12549,132.71,132.69,7.5362]
[1726592413790,20.50999162,132.73,132.69,7.5362]
[1726592413791,12.97579162,132.73,132.69,7.5362]
[1726592414514,14.64233643,132.73,132.69,7.5362]
[1726592414707,12.97579162,132.73,132.71,7.535]
[1726592415303,12.97579162,132.73,132.7,7.5357]
[1726592417617,12.97579162,132.73,132.68,16.5672]
[1726592418133,12.97579162,132.73,132.71,7.5351]
[1726592418904,12.97579162,132.73,132.68,16.5672]
[1726592419234,12.97579162,132.73,132.7,7.5356]
[1726592419940,12.97579162,132.73,132.69,7.5361]
[1726592419941,22.17653643,132.73,132.69,7.5361]
[1726592420103,24.027864,132.72,132.69,7.5361]
[1726592421948,0.12549,132.72,132.7,7.5357]
[1726592422231,23.902374,132.73,132.7,7.5357]
[1726592423335,25.56891881,132.73,132.7,7.5357]
[1726592423527,23.902374,132.73,132.7,7.5357]
[1726592423707,25.56891881,132.73,132.7,7.5357]
[1726592424231,0.12549,132.72,132.69,7.5363]
[1726592424533,0.12549,132.72,132.64,16.5041]
[1726592424534,0.25098,132.7,132.64,16.5041]
[1726592424713,1.91752481,132.7,132.64,16.5041]
[1726592425115,23.776884,132.69,132.64,16.5041]
[1726592425513,23.776884,132.67,132.64,7.539]
[1726592425717,0.25098,132.66,132.6,16.5041]
[1726592425924,7.78898,132.66,132.62,7.5399]
[1726592426118,23.776884,132.65,132.62,7.5399]
[1726592426338,23.776884,132.65,132.63,7.5397]
[1726592426736,24.027864,132.66,132.63,7.5397]
[1726592427032,24.027864,132.66,132.6,16.5041]
[1726592427033,23.776884,132.69,132.66,7.5376]
[1726592427618,23.776884,132.69,132.67,7.5374]
[1726592427819,23.776884,132.69,132.66,7.5378]
[1726592428134,23.776884,132.69,132.67,7.5374]
[1726592428336,23.902374,132.69,132.61,20.0]
[1726592428636,377.39198663,132.84,132.61,20.0]
[1726592428637,12.63517932,132.75,132.69,7.5359]
[1726592428946,12.63517932,132.75,132.67,20.0]
[1726592429445,12.63517932,132.75,132.68,7.5364]
[1726592429446,7.5342,132.73,132.68,7.5364]
[1726592429727,7.5342,132.73,132.69,7.5361]
[1726592430445,7.5342,132.73,132.66,22.0914]
[1726592430446,7.5342,132.73,132.68,7.5364]
[1726592430614,7.5368,132.69,132.66,22.0914]
[1726592430937,23.776884,132.69,132.66,7.5376]
[1726592431108,23.776884,132.69,132.63,22.766]
[1726592431109,0.12549,132.68,132.65,7.5385]
[1726592431506,23.9792544,132.7,132.67,7.5374]
[1726592431936,23.9792544,132.7,132.68,7.5368]
[1726592432240,0.2023704,132.7,132.68,7.5368]
[1726592434816,0.2023704,132.7,132.67,7.5373]
[1726592435941,0.2023704,132.7,132.68,7.5368]
[1726592436547,0.2023704,132.7,132.69,7.5363]
[1726592438423,0.2023704,132.7,132.63,60.99017972]
[1726592438424,0.2023704,132.7,132.67,7.5374]
[1726592438629,7.7381704,132.7,132.66,7.5378]
[1726592438839,24.027864,132.69,132.66,7.5378]
[1726592439443,24.027864,132.69,132.67,7.5374]
[1726592439641,23.9792544,132.7,132.67,7.5374]
[1726592440343,0.2023704,132.7,132.64,43.8972989]
[1726592440548,0.2023704,132.7,132.69,7.5363]
[1726592441757,0.2023704,132.7,132.68,7.5367]
[1726592441944,0.2023704,132.7,132.67,7.5374]
[1726592442148,0.2023704,132.7,132.68,7.5368]
[1726592443035,0.2023704,132.7,132.63,22.766]
[1726592443036,31.564564,132.69,132.65,7.5381]
[1726592443233,1.66654481,132.68,132.65,7.5381]
[1726592443439,31.564564,132.69,132.65,7.5381]
[1726592443673,31.564564,132.69,132.66,7.538]
[1726592443838,31.564564,132.69,132.63,22.766]
[1726592443839,24.027864,132.69,132.67,7.5374]
[1726592444164,24.027864,132.69,132.63,22.766]
[1726592444165,23.9792544,132.7,132.68,7.5367]
[1726592444362,0.2023704,132.7,132.68,7.5367]
[1726592444734,0.2023704,132.7,132.67,7.5372]
[1726592446737,0.25098,132.69,132.63,22.766]
[1726592446943,7.5373,132.68,132.64,7.539]